bitfinex-derivatives/quotes_BTCF0:USTF0_20250402
["timestamp","ask_amount","ask_price","bid_price","bid_amount"]
[1743571176038,0.1835824,84322.0,84321.0,0.15265273]
[1743571176231,0.1835824,84322.0,84321.0,0.15565273]
[1743571176538,0.1835824,84322.0,84321.0,0.15365273]
[1743571176738,0.1835824,84322.0,84321.0,0.15565273]
[1743571178238,0.1835824,84322.0,84321.0,0.15265273]
[1743571178535,0.1835824,84322.0,84321.0,0.15565273]
[1743571183035,0.1835824,84322.0,84321.0,0.15578323]
[1743571183940,0.1835824,84322.0,84321.0,0.15577892]
[1743571191353,0.1835824,84322.0,84321.0,0.03717502]
[1743571191755,0.30870309,84322.0,84321.0,0.03701632]
[1743571194843,0.30870309,84322.0,84321.0,0.02118595]
[1743571195046,0.30870309,84322.0,84321.0,0.02058595]
[1743571195252,0.30870309,84322.0,84317.0,0.21329352]
[1743571195253,0.1186081,84318.0,84317.0,0.21329352]
[1743571195440,0.13001045,84318.0,84317.0,0.21397352]
[1743571195644,0.26497591,84318.0,84317.0,0.21397352]
[1743571196048,0.1186151,84313.0,84312.0,0.28406207]
[1743571196253,0.4803351,84313.0,84312.0,0.18490207]
[1743571196453,0.62040021,84313.0,84312.0,0.18490207]
[1743571197248,0.6097038,84313.0,84312.0,0.18490207]
[1743571197647,0.61838957,84313.0,84312.0,0.18490207]
[1743571198651,0.6097038,84313.0,84312.0,0.00064]
[1743571198850,0.1186165,84312.0,84311.0,8e-05]
[1743571199061,0.1194565,84312.0,84311.0,8e-05]
[1743571199248,0.28423641,84312.0,84311.0,8e-05]
[1743571199554,0.31493641,84312.0,84311.0,8e-05]
[1743571199746,0.31493641,84312.0,84311.0,0.0315]
[1743571199943,0.31493641,84312.0,84311.0,0.03058]
[1743571201143,0.31493641,84312.0,84311.0,0.06058]
[1743571201347,0.31493641,84312.0,84311.0,0.03058]
[1743571201561,0.31493641,84312.0,84311.0,8e-05]
[1743571202559,0.31493641,84312.0,84311.0,0.1192979]
[1743571202858,0.31493641,84312.0,84311.0,0.1802979]
[1743571203060,0.31493641,84312.0,84311.0,0.1809379]
[1743571203263,0.31493641,84312.0,84311.0,0.06232]
[1743571205159,0.31493641,84312.0,84311.0,0.00072]
[1743571205549,0.31493641,84312.0,84311.0,8e-05]
[1743571205955,0.1186179,84311.0,84310.0,0.00047444]
[1743571206456,0.31810811,84311.0,84310.0,0.00055444]
[1743571207355,0.31910811,84311.0,84310.0,0.00055444]
[1743571207555,0.31910811,84311.0,84310.0,0.00047444]
[1743571209275,0.1186278,84304.0,84303.0,0.00508]
[1743571209560,0.49531587,84304.0,84303.0,0.0056]
[1743571209770,0.62674656,84304.0,84303.0,0.0056]
[1743571209950,0.61169849,84304.0,84303.0,0.0682]
[1743571210155,0.64409849,84304.0,84303.0,0.10068]
[1743571211067,0.13227069,84304.0,84303.0,0.2193092]
[1743571211257,0.25005849,84304.0,84303.0,0.2193092]
[1743571211462,0.25089849,84304.0,84303.0,0.2193092]
[1743571212065,0.26592596,84304.0,84303.0,0.10068]
[1743571212669,0.29852596,84304.0,84303.0,0.10068]
[1743571213165,0.32932596,84304.0,84303.0,0.06888]
[1743571213662,0.33729207,84304.0,84303.0,0.06888]
[1743571216970,0.33794973,84304.0,84303.0,0.06888]
[1743571218867,0.33726735,84304.0,84303.0,0.06888]
[1743571219067,0.3222646,84304.0,84303.0,0.06888]
[1743571219270,0.31429849,84304.0,84303.0,0.06888]
[1743571219664,0.31429849,84304.0,84303.0,0.00568]
[1743571219871,0.31429849,84304.0,84303.0,0.005]
[1743571220475,0.31429849,84304.0,84303.0,0.0376]
[1743571222767,0.67509849,84304.0,84303.0,0.0376]
[1743571223877,0.67509849,84304.0,84303.0,0.0056]
[1743571224068,0.67509849,84304.0,84303.0,0.005]
[1743571224270,0.68637601,84304.0,84303.0,0.0056]
[1743571224473,0.68637601,84304.0,84303.0,0.0378]
[1743571224677,0.68637601,84304.0,84303.0,0.0384]
[1743571225167,0.74405282,84304.0,84303.0,0.0384]
[1743571225370,0.7327753,84304.0,84303.0,0.0384]
[1743571225773,0.7327753,84304.0,84303.0,0.0696]
[1743571226873,0.74395255,84304.0,84303.0,0.0696]
[1743571227076,0.7327753,84304.0,84303.0,0.0384]
[1743571227374,0.74388082,84304.0,84303.0,0.005]
[1743571227763,0.74388068,84304.0,84303.0,0.005]
[1743571227969,0.74388068,84304.0,84303.0,0.0686]
[1743571228173,0.74388068,84304.0,84303.0,0.038]
[1743571228378,0.74388068,84304.0,84303.0,0.0374]
[1743571228883,0.74390535,84304.0,84303.0,0.0374]
[1743571229380,0.74395173,84304.0,84303.0,0.03824]
[1743571229574,0.7327753,84304.0,84303.0,0.03824]
[1743571230175,0.7019753,84304.0,84303.0,0.03824]
[1743571230365,0.7019753,84304.0,84303.0,0.07064]
[1743571231182,0.6693753,84304.0,84303.0,0.1892692]
[1743571231374,0.3085753,84304.0,84303.0,0.1892692]
[1743571232188,0.17714461,84304.0,84303.0,0.1892692]
[1743571232368,0.38916323,84304.0,84303.0,0.1892692]
[1743571235873,0.1194678,84304.0,84303.0,0.1892692]
[1743571236278,0.1194678,84304.0,84303.0,0.2491692]
[1743571240077,0.1194678,84304.0,84303.0,0.13054]
[1743571240478,0.1502678,84304.0,84303.0,0.13054]
[1743571240671,0.1812678,84304.0,84303.0,0.13054]
[1743571241183,0.5420678,84304.0,84303.0,0.13054]
[1743571243187,0.5420678,84304.0,84303.0,0.2491692]
[1743571243386,0.56874432,84304.0,84303.0,0.2491692]
[1743571243979,0.17714432,84304.0,84303.0,0.2491692]
[1743571244176,0.05851652,84304.0,84303.0,0.2491692]
[1743571244382,0.17714432,84304.0,84303.0,0.2491692]
[1743571244981,0.05851652,84304.0,84303.0,0.2491692]
[1743571245586,0.05851652,84304.0,84303.0,0.9491692]
[1743571245789,0.17714432,84304.0,84303.0,0.2491692]
[1743571246679,0.1194678,84304.0,84303.0,0.2491692]
[1743571246879,0.1526678,84304.0,84303.0,0.2491692]
[1743571253690,0.29395797,84304.0,84303.0,0.2491692]
[1743571253988,0.26075797,84304.0,84303.0,0.2491692]
[1743571256388,0.32525797,84304.0,84303.0,0.2491692]
[1743571257085,0.29225797,84304.0,84303.0,0.2491692]
[1743571257488,0.1509678,84304.0,84303.0,0.26113843]
[1743571260397,0.00084,84304.0,84303.0,0.26113843]
[1743571260591,0.17674533,84312.0,84311.0,0.1186179]
[1743571260787,0.17758533,84312.0,84311.0,0.1192179]
[1743571260997,0.17758533,84312.0,84311.0,0.2154979]
[1743571261204,0.00084,84312.0,84311.0,0.9770979]
[1743571261499,0.17674533,84313.0,84312.0,0.1186165]
[1743571261500,0.29536063,84313.0,84312.0,0.1186165]
[1743571261799,0.29620063,84313.0,84312.0,0.1192165]
[1743571261998,0.29620063,84313.0,84312.0,0.1820165]
[1743571264099,0.29620063,84313.0,84312.0,0.2456365]
[1743571264302,0.29620063,84313.0,84312.0,0.2779365]
[1743571265797,0.1194553,84313.0,84312.0,0.2779365]
[1743571269107,0.00084,84313.0,84312.0,0.2779365]
[1743571269496,0.0315,84320.0,84316.0,0.1186094]
[1743571269696,0.0315,84320.0,84319.0,0.4794067]
[1743571269900,0.1501053,84320.0,84319.0,0.4794067]
[1743571270096,0.00017782,84321.0,84319.0,0.4794053]
[1743571270297,0.11878172,84321.0,84320.0,0.1809053]
[1743571270702,0.14978172,84321.0,84320.0,0.1809053]
[1743571274598,0.15062172,84321.0,84320.0,0.1815053]
[1743571276397,0.00101782,84321.0,84320.0,0.1815053]
[1743571276605,0.53754533,84332.0,84328.0,0.1185926]
[1743571276606,0.0317,84330.0,84328.0,0.1185926]
[1743571276806,0.118593,84329.0,84328.0,0.1191926]
[1743571277106,0.118593,84329.0,84328.0,0.2135126]
[1743571277107,0.119513,84329.0,84328.0,0.2135126]
[1743571278007,0.120513,84329.0,84328.0,0.2135126]
[1743571279105,0.120513,84329.0,84328.0,0.09492]
[1743571279304,0.120513,84329.0,84328.0,0.0006]
[1743571279506,0.1185954,84327.0,84326.0,0.1185967]
[1743571279708,0.1194354,84327.0,84326.0,0.1191967]
[1743571279903,0.25145403,84327.0,84326.0,0.1191967]
[1743571280204,0.25145403,84327.0,84326.0,0.0006]
[1743571280407,0.118601,84323.0,84312.0,0.09392]
[1743571280605,0.4794039,84321.0,84315.0,0.1186117]
[1743571280905,0.48028391,84321.0,84315.0,0.1186117]
[1743571281108,0.60728095,84321.0,84303.0,0.0649]
[1743571281311,0.1186053,84320.0,84319.0,8e-05]
[1743571281508,0.1186151,84313.0,84312.0,0.118616]
[1743571281806,0.11957511,84313.0,84312.0,0.0006]
[1743571282000,0.25497062,84313.0,84312.0,0.0006]
[1743571282404,0.34997062,84313.0,84312.0,0.0006]
[1743571282913,0.34997062,84313.0,84312.0,0.1192165]
[1743571283210,0.34997062,84313.0,84312.0,0.0006]
[1743571283801,0.31667062,84313.0,84312.0,0.1192165]
[1743571285711,0.18127511,84313.0,84312.0,0.1192165]
[1743571290010,0.18127511,84313.0,84312.0,0.0006]
[1743571290209,0.54207511,84313.0,84312.0,0.0006]
[1743571290708,0.1186165,84312.0,84311.0,0.1186167]
[1743571290908,0.11949651,84312.0,84311.0,0.1192167]
[1743571291118,0.18319651,84312.0,84311.0,0.1186967]
[1743571291810,0.18319651,84312.0,84311.0,0.1195367]
[1743571293316,0.18319651,84312.0,84311.0,0.1186967]
[1743571293705,0.18319651,84312.0,84311.0,0.1193767]
[1743571293905,0.18319651,84312.0,84311.0,0.1193779]
[1743571294102,0.19832791,84312.0,84311.0,0.1186979]
[1743571294310,0.19832791,84312.0,84311.0,0.1193779]
[1743571295012,0.18319651,84312.0,84311.0,0.1193779]
[1743571298011,0.18319651,84312.0,84311.0,0.00076]
[1743571298214,0.18319651,84312.0,84311.0,0.1193779]
[1743571301007,0.18319651,84312.0,84311.0,0.1508779]
[1743571301510,0.15259651,84312.0,84311.0,0.1508779]
[1743571301712,0.00088001,84312.0,84311.0,0.1508779]
[1743571302010,0.11949651,84312.0,84311.0,0.1508779]
[1743571302415,0.11949651,84312.0,84311.0,0.1507979]
[1743571302824,0.14989651,84312.0,84311.0,0.1507979]
[1743571306322,0.51069651,84312.0,84311.0,0.1507979]
[1743571308624,0.51069651,84312.0,84311.0,0.03218]
[1743571308926,0.51069651,84312.0,84311.0,0.1192979]
[1743571309118,0.51069651,84312.0,84311.0,0.1513979]
[1743571311429,0.51069651,84312.0,84311.0,0.1192979]
[1743571312316,0.51069651,84312.0,84311.0,0.1518979]
[1743571312822,0.54099651,84312.0,84311.0,0.1518979]
[1743571314421,0.54099651,84312.0,84311.0,0.1192979]
[1743571314920,0.54099651,84312.0,84311.0,0.00068]
[1743571315116,0.54099651,84312.0,84311.0,0.1192979]
[1743571315321,0.54099651,84312.0,84311.0,0.00068]
[1743571315519,0.54099651,84312.0,84310.0,0.03198]
[1743571315520,0.1186179,84311.0,84310.0,0.03198]
[1743571315721,0.1195379,84311.0,84310.0,0.03198]
[1743571315923,0.1814379,84311.0,84310.0,0.03266]
[1743571316528,0.1814379,84311.0,84310.0,0.0319]
[1743571316826,0.1186278,84305.0,84304.0,0.1186277]
[1743571317031,0.1194678,84305.0,84304.0,0.1827277]
[1743571317228,0.1808678,84305.0,84304.0,0.1827277]
[1743571317529,0.1808678,84305.0,84304.0,0.2153277]
[1743571317830,0.1495678,84305.0,84304.0,0.2153277]
[1743571320532,0.1828678,84305.0,84304.0,0.2153277]
[1743571321233,0.00084,84305.0,84304.0,0.2153277]
[1743571321436,0.0593118,84307.0,84306.0,0.1186236]
[1743571321732,0.0601518,84307.0,84306.0,0.1830036]
[1743571322241,0.00084,84307.0,84306.0,0.1830036]
[1743571322531,0.00084,84307.0,84306.0,0.5438036]
[1743571323330,0.17674533,84312.0,84311.0,0.1186179]
[1743571323632,0.29596184,84312.0,84311.0,0.1192179]
[1743571323936,0.29596184,84312.0,84311.0,0.1826179]
[1743571324420,0.17734534,84312.0,84311.0,0.1826179]
[1743571324625,0.17674533,84312.0,84311.0,0.1826179]
[1743571324832,0.17734534,84312.0,84311.0,0.1826179]
[1743571325425,0.17674533,84312.0,84311.0,0.1826179]
[1743571327040,0.17734534,84312.0,84311.0,0.1826179]
[1743571327335,0.17674533,84312.0,84311.0,0.1826179]
[1743571328329,0.14149306,84317.0,84311.0,0.064]
[1743571328528,0.14149306,84317.0,84316.0,0.3608]
[1743571328730,0.14209307,84317.0,84316.0,0.45352]
[1743571328934,0.14209307,84317.0,84316.0,0.6333309]
[1743571329134,0.14149306,84317.0,84316.0,0.6333309]
[1743571329432,0.14209307,84317.0,84316.0,0.6333309]
[1743571329935,0.14149306,84317.0,84316.0,0.6333309]
[1743571331134,0.14217306,84317.0,84316.0,0.6333309]
[1743571332234,0.00068,84317.0,84316.0,0.6333309]
[1743571332535,0.0305,84319.0,84318.0,0.1186081]
[1743571332738,0.03110001,84319.0,84318.0,0.1192081]
[1743571332933,0.03110001,84319.0,84318.0,0.4800081]
[1743571335328,0.14970671,84319.0,84318.0,0.4800081]
[1743571335522,0.18300671,84319.0,84318.0,0.4800081]
[1743571335725,0.18300671,84319.0,84318.0,0.5713281]
[1743571339038,0.14970671,84319.0,84318.0,0.5713281]
[1743571339248,0.03110001,84319.0,84318.0,0.5713281]
[1743571339541,0.00017793,84320.0,84319.0,0.1186067]
[1743571339740,0.10599398,84323.0,84322.0,0.1186024]
[1743571339939,0.10659399,84323.0,84322.0,0.1194024]
[1743571340542,0.10659399,84323.0,84322.0,0.1818024]
[1743571341129,0.10759399,84323.0,84322.0,0.1818024]
[1743571342133,0.10759399,84323.0,84322.0,0.4618024]
[1743571342339,0.10699398,84323.0,84322.0,0.4618024]
[1743571342539,0.00017793,84331.0,84324.0,0.0592993]
[1743571342741,0.00017793,84331.0,84330.0,0.4793912]
[1743571342935,0.00093793,84331.0,84330.0,0.4801512]
[1743571343538,0.00093793,84331.0,84330.0,0.5424512]
[1743571343743,0.00217793,84331.0,84330.0,0.5424512]
[1743571343942,0.00293793,84331.0,84330.0,0.5424512]
[1743571344442,0.03433793,84331.0,84330.0,0.5424512]
[1743571345231,0.03433793,84331.0,84330.0,0.55448052]
[1743571345436,0.06503793,84331.0,84330.0,0.55448052]
[1743571346936,0.18362773,84331.0,84330.0,0.55448052]
[1743571347533,0.18362773,84331.0,84330.0,0.52408052]
[1743571348139,0.06503793,84331.0,84330.0,0.52408052]
[1743571348346,0.0592859,84344.0,84330.0,0.52408052]
[1743571348347,0.420082,84350.0,84346.0,0.1185687]
[1743571348543,0.29591434,84347.0,84346.0,0.1185687]
[1743571348743,0.29591434,84347.0,84346.0,0.1193687]
[1743571349052,0.29591434,84347.0,84346.0,0.1185687]
[1743571349236,0.29591434,84347.0,84346.0,0.1193287]
[1743571349548,0.29691434,84347.0,84346.0,0.13127119]
[1743571349757,0.32961434,84347.0,84346.0,0.13127119]
[1743571349946,0.33061434,84347.0,84346.0,0.1193287]
[1743571350246,0.33061434,84347.0,84346.0,0.00076]
[1743571350439,0.1778606,84344.0,84343.0,0.1185722]
[1743571350633,0.1786206,84344.0,84343.0,0.1193322]
[1743571350835,0.34082222,84344.0,84343.0,0.00076]
[1743571351141,0.1185785,84339.0,84338.0,0.00025793]
[1743571351446,0.11917851,84339.0,84338.0,0.00017793]
[1743571351744,0.11917851,84339.0,84327.0,0.21348192]
[1743571351745,0.118594,84328.0,84327.0,0.33207732]
[1743571352048,0.119434,84328.0,84327.0,0.33283732]
[1743571352735,0.180534,84328.0,84327.0,0.33283732]
[1743571353151,0.181534,84328.0,84327.0,0.33283732]
[1743571354751,0.181534,84328.0,84327.0,0.1193554]
[1743571354943,0.182534,84328.0,84327.0,0.1193554]
[1743571355542,0.182534,84328.0,84327.0,0.03216]
[1743571355743,0.182534,84328.0,84327.0,0.00076]
[1743571358245,0.182534,84328.0,84327.0,0.1523554]
[1743571358246,0.181694,84328.0,84327.0,0.1523554]
[1743571359643,0.18229401,84328.0,84327.0,0.1523554]
[1743571368254,0.18229401,84328.0,84327.0,0.00076]
[1743571368444,0.54309401,84328.0,84327.0,0.00076]
[1743571368644,0.1186053,84320.0,84319.0,0.00017793]
[1743571368860,0.4802053,84320.0,84319.0,0.00105793]
[1743571369060,0.61628482,84320.0,84319.0,0.00105793]
[1743571369549,0.67828482,84320.0,84319.0,0.00105793]
[1743571369753,0.67828482,84320.0,84319.0,0.11958463]
[1743571370448,0.5422053,84320.0,84319.0,0.15128463]
[1743571370649,0.5422053,84320.0,84319.0,0.18338463]
[1743571372056,0.5422053,84320.0,84319.0,0.18438463]
[1743571372459,0.5422053,84320.0,84319.0,0.18638463]
[1743571373454,0.5422053,84320.0,84319.0,0.06777793]
[1743571374449,0.67165854,84320.0,84319.0,0.06577793]
[1743571374653,0.67165854,84320.0,84319.0,0.06697793]
[1743571375260,0.67165854,84320.0,84319.0,0.06597793]
[1743571375855,0.60965854,84320.0,84319.0,0.00217793]
[1743571376355,0.60965854,84320.0,84319.0,0.00293793]
[1743571376550,0.60965854,84320.0,84319.0,0.00217793]
[1743571378561,0.60965854,84320.0,84319.0,0.00117793]
[1743571378956,0.60965854,84320.0,84319.0,0.00017793]
[1743571380664,0.60965854,84320.0,84319.0,0.00093793]
[1743571381166,0.60965854,84320.0,84319.0,0.00017793]
[1743571381562,0.60965854,84320.0,84319.0,0.00217793]
[1743571382269,0.60965854,84320.0,84319.0,0.00117793]
[1743571382472,0.60965854,84320.0,84319.0,0.00217793]
[1743571382772,0.60965854,84320.0,84319.0,0.00117793]
[1743571384769,0.60965854,84320.0,84319.0,0.00217793]
[1743571384958,0.60965854,84320.0,84319.0,0.00117793]
[1743571385162,0.60965854,84320.0,84319.0,0.00017793]
[1743571385965,0.60965854,84320.0,84310.0,4e-08]
[1743571385966,0.1186179,84311.0,84310.0,4e-08]
[1743571386168,0.1186278,84304.0,84302.0,0.08617]
[1743571386361,0.1186292,84303.0,84302.0,0.0765581]
[1743571386566,0.1193892,84303.0,84302.0,0.0773181]
[1743571386773,0.1186461,84291.0,84290.0,0.19828855]
[1743571386975,0.50419487,84291.0,84290.0,0.19904855]
[1743571387170,0.64124574,84291.0,84290.0,0.19904855]
[1743571388667,0.6416447,84291.0,84290.0,0.20104855]
[1743571389466,0.7035447,84291.0,84290.0,0.20204855]
[1743571390065,0.05664773,84291.0,84290.0,0.20204855]
[1743571390371,0.0593144,84304.0,84298.0,0.1186362]
[1743571390565,0.21295655,84299.0,84298.0,0.8193962]
[1743571390875,0.21219655,84299.0,84298.0,0.9154962]
[1743571391077,0.33083135,84299.0,84298.0,0.9154962]
[1743571391267,0.33159135,84299.0,84298.0,0.9154962]
[1743571391665,0.33159135,84299.0,84298.0,0.9174962]
[1743571392394,0.33159135,84299.0,84298.0,0.9194962]
[1743571392876,0.33159135,84299.0,84298.0,1.0087762]
[1743571393177,0.21295655,84299.0,84298.0,1.0087762]
[1743571393774,0.21219655,84299.0,84298.0,1.0087762]
[1743571394167,0.1779468,84305.0,84304.0,0.1779365]
[1743571394368,0.17854681,84305.0,84304.0,0.1787365]
[1743571395466,0.05991341,84305.0,84304.0,0.1807365]
[1743571396173,0.05991341,84305.0,84304.0,0.1827365]
[1743571396569,0.05991341,84305.0,84304.0,0.2489365]
[1743571397075,0.05991341,84305.0,84304.0,0.26102202]
[1743571398479,0.05991341,84305.0,84304.0,0.2489365]
[1743571398983,0.05991341,84305.0,84304.0,0.260707]
[1743571400283,0.00060001,84305.0,84304.0,0.260707]
[1743571400581,0.11922641,84305.0,84304.0,0.260707]
[1743571400982,0.11922641,84305.0,84304.0,0.2489365]
[1743571401571,0.00060001,84305.0,84304.0,0.2489365]
[1743571404691,0.17603049,84320.0,84318.0,0.1186081]
[1743571404980,0.1517067,84319.0,84318.0,0.1186081]
[1743571405285,0.1517067,84319.0,84318.0,0.1195281]
[1743571405585,0.1526267,84319.0,84318.0,0.1195281]
[1743571405971,0.1869267,84319.0,84318.0,0.1521281]
[1743571406587,0.03602,84319.0,84318.0,0.1521281]
[1743571406879,0.00332,84319.0,84318.0,0.1833281]
[1743571407188,0.1209267,84319.0,84318.0,0.1833281]
[1743571407580,0.00232,84319.0,84318.0,0.1833281]
[1743571408177,0.1199267,84319.0,84318.0,0.1833281]
[1743571408485,0.1502267,84319.0,84318.0,0.1833281]
[1743571408786,0.1502267,84319.0,84318.0,0.1521281]
[1743571408985,0.1502267,84319.0,84318.0,0.1541281]
[1743571410988,0.1502267,84319.0,84318.0,0.1843281]
[1743571411684,0.2596516,84328.0,84326.0,0.1185968]
[1743571411882,0.03267793,84327.0,84326.0,0.1185968]
[1743571412082,0.0592909,84337.0,84328.0,0.118594]
[1743571412277,0.36200001,84329.0,84328.0,0.119794]
[1743571412682,0.36200001,84329.0,84328.0,0.181394]
[1743571413087,0.36200001,84329.0,84328.0,0.19327374]
[1743571413286,0.48059261,84329.0,84328.0,0.19327374]
[1743571413591,0.48059261,84329.0,84328.0,0.181394]
[1743571414094,0.48159261,84329.0,84328.0,0.151194]
[1743571414789,0.48987442,84329.0,84328.0,0.151194]
[1743571414998,0.49087442,84329.0,84328.0,0.151194]
[1743571415890,0.48259261,84329.0,84328.0,0.151194]
[1743571416993,0.51349261,84329.0,84328.0,0.151194]
[1743571417303,0.54549261,84329.0,84328.0,0.151194]
[1743571417596,0.18469261,84329.0,84328.0,0.151194]
[1743571419492,0.19300464,84329.0,84328.0,0.151194]
[1743571423097,0.19300464,84329.0,84328.0,0.0326]
[1743571423493,0.18469261,84329.0,84328.0,0.0326]
[1743571423693,0.18469261,84329.0,84328.0,0.151194]
[1743571424500,0.67342155,84329.0,84328.0,0.0012]
[1743571424711,0.1185968,84326.0,84325.0,8e-05]
[1743571424896,0.1185996,84324.0,84323.0,0.1186003]
[1743571425090,0.11919961,84324.0,84323.0,0.1186003]
[1743571425299,0.25648587,84324.0,84323.0,0.1186003]
[1743571425497,0.3296436,84324.0,84323.0,0.1186003]
[1743571426197,0.118601,84323.0,84322.0,0.03148]
[1743571426406,0.119281,84323.0,84322.0,0.03276]
[1743571426600,0.31508086,84323.0,84322.0,0.03276]
[1743571426896,0.1186067,84319.0,84318.0,0.00017793]
[1743571427094,0.11920671,84319.0,84318.0,0.00137793]
[1743571427295,0.25377608,84319.0,84318.0,0.00017793]
[1743571427490,0.25377608,84319.0,84318.0,0.00137793]
[1743571427799,0.25377608,84319.0,84318.0,0.00017793]
[1743571428292,0.28637608,84319.0,84318.0,0.00017793]
[1743571428698,0.28637608,84319.0,84318.0,0.00117793]
[1743571429205,0.28637608,84319.0,84318.0,0.00217793]
[1743571429704,0.28637608,84319.0,84318.0,0.00337793]
[1743571431091,0.64717608,84319.0,84318.0,0.00337793]
[1743571431496,0.64717608,84319.0,84318.0,0.00217793]
[1743571432407,0.64717608,84319.0,84318.0,0.03407793]
[1743571433004,0.64717608,84319.0,84318.0,0.00217793]
[1743571433703,0.66247928,84319.0,84318.0,0.00217793]
[1743571434301,0.1186193,84310.0,84309.0,8e-05]
[1743571434495,0.118625,84306.0,84305.0,0.0319]
[1743571434701,0.13452821,84306.0,84305.0,0.03198]
[1743571434995,0.27446276,84306.0,84305.0,0.03198]
[1743571435402,0.30606276,84306.0,84305.0,0.0319]
[1743571435796,0.30606276,84306.0,84305.0,0.0349]
[1743571437906,0.29075956,84306.0,84305.0,0.0349]
[1743571439905,0.00876593,84306.0,84305.0,0.1535264]
[1743571440206,0.12739093,84306.0,84305.0,0.1547264]
[1743571440405,0.12739093,84306.0,84305.0,0.8857264]
[1743571440708,0.11922501,84306.0,84305.0,0.8857264]
[1743571442102,0.17612372,84309.0,84308.0,0.1186221]
[1743571442299,0.17748372,84309.0,84308.0,0.1199821]
[1743571442912,0.00136,84309.0,84308.0,0.1199821]
[1743571443217,0.11879183,84314.0,84313.0,0.1186151]
[1743571443403,0.00017793,84314.0,84313.0,0.1200151]
[1743571443603,0.17612372,84325.0,84322.0,0.1779003]
[1743571443811,0.1186019,84323.0,84322.0,0.0606607]
[1743571444012,0.17612372,84325.0,84324.0,0.1185996]
[1743571444208,0.17672373,84325.0,84324.0,0.1199596]
[1743571444713,0.29532193,84325.0,84324.0,0.1199596]
[1743571445903,0.29632193,84325.0,84324.0,0.1199596]
[1743571446812,0.29632193,84325.0,84324.0,0.00136]
[1743571447014,0.29632193,84325.0,84319.0,0.1186866]
[1743571447015,0.1186053,84320.0,84319.0,0.1186866]
[1743571447330,0.1199653,84320.0,84319.0,0.2066466]
[1743571447829,0.1199653,84320.0,84319.0,0.08804]
[1743571448023,0.1199653,84320.0,84319.0,0.2052067]
[1743571448223,0.1199653,84320.0,84319.0,0.00236]
[1743571448532,0.1199653,84320.0,84319.0,0.002]
[1743571448924,0.13540316,84320.0,84319.0,0.002]
[1743571449325,0.17655695,84320.0,84319.0,0.002]
[1743571449733,0.17655695,84320.0,84319.0,0.00336]
[1743571450029,0.17655695,84320.0,84319.0,0.002]
[1743571450236,0.17663506,84320.0,84319.0,0.002]
[1743571450629,0.17663506,84320.0,84319.0,0.00336]
[1743571450830,0.14403506,84320.0,84319.0,0.1206067]
[1743571451024,0.02542976,84320.0,84319.0,0.1220067]
[1743571451431,0.14403506,84320.0,84319.0,0.1220067]
[1743571453933,0.14407712,84320.0,84319.0,0.1220067]
[1743571454332,0.14407925,84320.0,84319.0,0.1220067]
[1743571461741,0.14407925,84320.0,84319.0,0.1526067]
[1743571462433,0.14403555,84320.0,84319.0,0.1526067]
[1743571463542,0.14403555,84320.0,84319.0,0.1856067]
[1743571466434,0.14376754,84320.0,84319.0,0.1856067]
[1743571470542,0.14384458,84320.0,84319.0,0.1856067]
[1743571472845,0.17604458,84320.0,84319.0,0.1856067]
[1743571473346,0.30960517,84320.0,84319.0,0.0034]
[1743571473541,0.30960517,84320.0,84319.0,0.002]
[1743571474235,0.3234707,84320.0,84319.0,0.002]
[1743571476552,0.30960517,84320.0,84319.0,0.002]
[1743571476847,0.30960517,84320.0,84319.0,0.00336]
[1743571477050,0.29423598,84320.0,84319.0,0.00336]
[1743571477347,0.65503598,84320.0,84319.0,0.00336]
[1743571478244,0.65503598,84320.0,84319.0,0.1530667]
[1743571478653,0.90416807,84320.0,84319.0,0.1530667]
[1743571480150,0.90416807,84320.0,84319.0,0.15095831]
[1743571481847,0.71270389,84320.0,84319.0,0.03235161]
[1743571482050,0.71270389,84320.0,84319.0,0.0311]
[1743571482253,0.72778206,84320.0,84319.0,0.0311]
[1743571482443,0.1186081,84318.0,84317.0,8e-05]
[1743571482648,0.1186193,84310.0,84309.0,8e-05]
[1743571482851,0.118625,84306.0,84287.0,0.0321]
[1743571483154,0.1186376,84297.0,84296.0,0.28364184]
[1743571483450,0.49451291,84297.0,84296.0,0.28508184]
[1743571483658,0.62080078,84297.0,84296.0,0.28508184]
[1743571483957,0.62931087,84297.0,84296.0,0.28508184]
[1743571484152,0.69511087,84297.0,84296.0,0.28508184]
[1743571484954,0.69511087,84297.0,84296.0,0.00152]
[1743571484955,0.69571088,84297.0,84296.0,0.00152]
[1743571485258,0.69671088,84297.0,84296.0,0.00108]
[1743571486049,0.69669364,84297.0,84296.0,0.00108]
[1743571486347,0.69769364,84297.0,84296.0,0.00108]
[1743571488356,0.69769364,84297.0,84296.0,0.06558]
[1743571488963,0.63189364,84297.0,84296.0,0.06558]
[1743571489345,0.60832548,84297.0,84296.0,0.06558]
[1743571491355,0.24752548,84297.0,84296.0,0.06558]
[1743571491562,0.60832548,84297.0,84296.0,0.06694]
[1743571491951,0.60832548,84297.0,84296.0,0.06558]
[1743571492152,0.61644092,84297.0,84296.0,0.06558]
[1743571492747,0.60832548,84297.0,84296.0,0.06558]
[1743571493455,0.60832548,84297.0,84296.0,0.06698]
[1743571493660,0.60832548,84297.0,84296.0,0.06558]
[1743571493861,0.60832548,84297.0,84296.0,0.06694]
[1743571494056,0.60832548,84297.0,84296.0,0.06558]
[1743571494659,0.60832548,84297.0,84296.0,0.06698]
[1743571496861,0.67172548,84297.0,84296.0,0.06558]
[1743571497064,0.67172548,84297.0,84296.0,0.03298]
[1743571497765,0.67991677,84297.0,84296.0,0.03298]
[1743571498155,0.67991677,84297.0,84296.0,0.0329]
[1743571498960,0.67991677,84297.0,84296.0,0.0634]
[1743571499156,0.31911677,84297.0,84296.0,0.0634]
[1743571499363,0.67991677,84297.0,84296.0,0.0648]
[1743571499555,0.67991677,84297.0,84296.0,0.0634]
[1743571500368,0.67172548,84297.0,84296.0,0.0634]
[1743571500861,0.67172548,84297.0,84296.0,0.0329]
[1743571501165,0.64042548,84297.0,84296.0,0.0329]
[1743571501467,0.64854196,84297.0,84296.0,0.0329]
[1743571501654,0.68004196,84297.0,84296.0,0.0329]
[1743571502451,0.82110067,84297.0,84296.0,0.0329]
[1743571505465,0.81298419,84297.0,84296.0,0.0329]
[1743571506765,0.68012023,84297.0,84296.0,0.0329]
[1743571508260,0.61552023,84297.0,84296.0,0.0319]
[1743571508461,0.61552023,84297.0,84296.0,0.0329]
[1743571508770,0.61452023,84297.0,84296.0,0.0329]
[1743571510664,0.64522023,84297.0,84296.0,0.0329]
[1743571511172,0.67592023,84297.0,84296.0,0.0329]
[1743571512467,0.68732916,84297.0,84296.0,0.0329]
[1743571513374,0.70251751,84297.0,84296.0,0.0329]
[1743571513771,0.64111751,84297.0,84296.0,0.0329]
[1743571514076,0.62970858,84297.0,84296.0,0.0329]